lending/lending_fUSD_20240202
["ID","MTS","AMOUNT","RATE_DAILY","PERIOD"]
[313194015,1706914248317,-500.0,0.00022593,2]
[313194016,1706914248326,-520.78845821,0.00022593,2]
[313194017,1706914248335,-500.0,0.00022593,2]
[313194018,1706914248345,-500.0,0.00022593,2]
[313194019,1706914248354,-853.03,0.00022593,2]
[313194020,1706914248363,-500.0,0.00022593,2]
[313194021,1706914248372,-500.0,0.00022593,2]
[313194022,1706914248381,-524.77173873,0.00022593,2]
[313194023,1706914248390,-535.70711916,0.00022593,2]
[313194024,1706914248400,-542.18415725,0.00022593,2]
[313194025,1706914248409,-500.0,0.00022593,2]
[313194026,1706914248418,-500.0,0.00022593,2]
[313194027,1706914248427,-500.0,0.00022593,2]
[313194028,1706914248437,-496.20859613,0.00022593,2]
[313194029,1706914248446,-500.0,0.00022593,2]
[313194030,1706914248455,-500.0,0.00022593,2]
[313194031,1706914248464,-505.89297461,0.00022593,2]
[313194032,1706914248473,-162.0969147,0.00022593,2]
[313194033,1706914248482,-500.0,0.00022593,2]
[313194034,1706914248491,-836.31,0.00022593,2]
[313194035,1706914248500,-500.0,0.00022593,2]
[313194036,1706914248509,-529.33381221,0.00022593,2]
[313194037,1706914248518,-233.79347777,0.00022593,2]
[313194038,1706914248527,-527.71262557,0.00022593,2]
[313194039,1706914248537,-500.0,0.00022593,2]
[313194040,1706914248545,-529.87581572,0.00022593,2]
[313194041,1706914248555,-500.0,0.00022593,2]
[313194042,1706914248564,-553.23137733,0.00022593,2]
[313194043,1706914248573,-635.98099102,0.00022593,2]
[313194044,1706914248582,-544.02729255,0.00022593,2]
[313194045,1706914248591,-566.73743874,0.00022593,2]
[313194046,1706914248600,-515.2026119,0.00022593,2]
[313194047,1706914248610,-413.06464927,0.00022594,2]
[313194048,1706914248618,-2000.0,0.00022594,2]
[313194049,1706914248627,-200.0,0.00022594,2]
[313194050,1706914248636,-2000.0,0.00022594,2]
[313194051,1706914248645,-200.0,0.00022594,2]
[313194052,1706914248654,-500.0,0.00022594,2]
[313194053,1706914248663,-500.0,0.00022594,2]
[313194054,1706914248672,-500.0,0.00022594,2]
[313194055,1706914248682,-2000.0,0.00022594,2]
[313194056,1706914248691,-200.0,0.00022594,2]
[313194057,1706914248699,-200.0,0.00022594,2]
[313194058,1706914248708,-181.43729233,0.00022595,2]
[313194059,1706914248717,-2788.82514314,0.00022595,2]
[313194060,1706914248726,-158.69334098,0.00022595,2]
[313194061,1706914248735,-500.0,0.00022596,2]
[313194062,1706914248744,-155.0,0.0002261,2]
[313194063,1706914248753,-155.20079347,0.00022616,2]
[313194064,1706914248762,-155.20079347,0.0002264,2]
[313194065,1706914248771,-751.0,0.00022664,2]
[313194066,1706914248780,-155.20079347,0.00022665,2]
[313194067,1706914248790,-218.39209122,0.00022672,2]
[313194068,1706914248799,-155.20079347,0.0002269,2]
[313194069,1706914248809,-4699.8584284,0.00022693,2]
[313194070,1706914248818,-3164.34745228,0.00022694,2]
[313194071,1706914248827,-164.34738147,0.00022695,2]
[313194072,1706914248836,-2901.94258728,0.00022695,2]
[313194073,1706914248846,-993.55703931,0.00022695,2]
[313194074,1706914248856,-4256.30556535,0.00022695,2]
[313194075,1706914248866,-6920.02690777,0.00022695,2]
[313194076,1706914248875,-218.45729164,0.00022695,2]
[313194077,1706914248884,-155.0,0.00022696,2]
[313194078,1706914248894,-260.76614424,0.00022696,2]
[313194079,1706914248985,-151.0203,0.00022696,3]
[313194080,1706914248996,-151.0203,0.00022696,3]
[313194081,1706914249005,-151.0203,0.00022696,3]
[313194082,1706914249015,-151.0203,0.00022696,3]
[313194083,1706914249025,-151.0203,0.00022696,3]
[313194084,1706914249034,-151.0203,0.00022696,3]
[313194085,1706914249043,-151.0203,0.00022696,3]
[313194086,1706914249054,-151.0203,0.00022696,3]
[313194087,1706914249063,-151.0203,0.00022696,3]
[313194088,1706914249072,-151.0203,0.00022696,3]
[313194089,1706914249082,-501.95711008,0.00022696,15]
[313194090,1706914249092,-1000.0,0.00022696,2]
[313194091,1706914249102,-352.64457646,0.00022696,2]
[313194092,1706914249112,-500.0,0.00022696,9]
[313194093,1706914249121,-315.38680376,0.00022696,2]
[313194094,1706914249131,-500.0,0.00022696,2]
[313194095,1706914249140,-238.00270007,0.00022696,2]
[313194096,1706914249149,-502.16881654,0.00022696,2]
[313194097,1706914249158,-500.0,0.00022696,2]
[313194098,1706914249167,-538.81944319,0.00022696,2]
[313194099,1706914249176,-507.26732725,0.00022696,2]
[313194100,1706914249185,-500.0,0.00022696,2]
[313194101,1706914249194,-299.95150765,0.00022696,2]
[313194102,1706914249203,-157.19188882,0.00022696,2]
[313194103,1706914249212,-500.0,0.00022696,2]
[313194104,1706914249221,-500.0,0.00022696,2]
[313194105,1706914249231,-500.0,0.00022696,2]
[313194106,1706914249240,-500.0,0.00022696,2]
[313194107,1706914249251,-500.0,0.00022696,2]
[313194108,1706914249263,-606.04689623,0.00022696,2]
[313194109,1706914249272,-355.36581257,0.00022696,2]
[313194110,1706914249281,-150.0,0.00022711,2]
[313194111,1706914249291,-150.0,0.00022714,2]
[313194112,1706914249300,-155.20079347,0.00022715,2]
[313194113,1706914249311,-155.20079347,0.0002274,2]
[313194114,1706914249320,-150.0,0.00022742,2]
[313194115,1706914249330,-155.20079347,0.00022765,2]
[313194116,1706914249339,-214.70397213,0.00022765,2]
[313194117,1706914249348,-457.24173516,0.00022765,2]
[313194118,1706914249357,-800.0,0.00022765,2]
[313194119,1706914249367,-150.0,0.00022782,2]
[313194120,1706914249376,-500.0,0.00022795,2]
[313194121,1706914249385,-500.0,0.00022795,2]
[313194122,1706914249395,-500.0,0.00022795,2]
[313194123,1706914249404,-500.0,0.00022795,2]
[313194124,1706914249414,-500.0,0.00022795,2]
[313194125,1706914249423,-500.0,0.00022795,2]
[313194126,1706914249432,-500.0,0.00022795,2]
[313194127,1706914249441,-500.0,0.00022795,2]
[313194128,1706914249450,-500.0,0.00022795,2]
[313194129,1706914249459,-500.0,0.00022795,2]
[313194130,1706914249469,-500.0,0.00022795,2]
[313194131,1706914249478,-500.0,0.00022795,2]
[313194132,1706914249487,-500.0,0.00022795,2]
[313194133,1706914249496,-500.0,0.00022795,2]
[313194134,1706914249506,-500.0,0.00022795,2]
[313194135,1706914249515,-500.0,0.00022795,2]
[313194136,1706914249524,-500.0,0.00022795,2]
[313194137,1706914249533,-500.0,0.00022795,2]
[313194138,1706914249542,-500.0,0.00022795,2]
[313194139,1706914249551,-500.0,0.00022795,2]
[313194140,1706914249562,-500.0,0.00022795,2]
[313194141,1706914249570,-500.0,0.00022795,2]
[313194142,1706914249579,-500.0,0.00022795,2]
[313194143,1706914249588,-500.0,0.00022795,2]
[313194144,1706914249597,-500.0,0.00022795,2]
[313194145,1706914249607,-500.0,0.00022795,2]
[313194146,1706914249617,-500.0,0.00022795,2]
[313194147,1706914249626,-500.0,0.00022795,2]
[313194148,1706914249635,-500.0,0.00022795,2]
[313194149,1706914249644,-500.0,0.00022795,2]
[313194150,1706914249653,-500.0,0.00022795,2]
[313194151,1706914249662,-500.0,0.00022795,2]
[313194152,1706914249670,-500.0,0.00022795,2]
[313194153,1706914249679,-500.0,0.00022795,2]
[313194154,1706914249688,-500.0,0.00022795,2]
[313194155,1706914249697,-500.0,0.00022795,2]
[313194156,1706914249707,-500.0,0.00022795,2]
[313194157,1706914249717,-500.0,0.00022795,2]
[313194158,1706914249726,-500.0,0.00022795,2]
[313194159,1706914249735,-500.0,0.00022795,2]
[313194160,1706914249744,-500.0,0.00022795,2]
[313194161,1706914249753,-500.0,0.00022795,2]
[313194162,1706914249763,-500.0,0.00022795,2]
[313194163,1706914249772,-500.0,0.00022795,2]
[313194164,1706914249781,-500.0,0.00022795,2]
[313194165,1706914249790,-500.0,0.00022795,2]
[313194166,1706914249799,-500.0,0.00022795,2]
[313194167,1706914249808,-500.0,0.00022795,2]
[313194168,1706914249818,-500.0,0.00022795,2]
[313194169,1706914249827,-500.0,0.00022795,2]
[313194170,1706914249837,-544.31907168,0.00022795,2]
[313194171,1706914249846,-500.0,0.00022795,2]
[313194172,1706914249857,-500.0,0.00022795,2]
[313194173,1706914249867,-500.0,0.00022795,2]
[313194174,1706914249877,-347.399609,0.00022795,2]
[313194175,1706914249887,-500.0,0.00022795,2]
[313194176,1706914249896,-500.0,0.00022795,2]
[313194177,1706914249906,-500.0,0.00022795,2]
[313194178,1706914249915,-500.0,0.00022795,2]
[313194179,1706914249924,-500.0,0.00022795,2]
[313194180,1706914249934,-500.0,0.00022795,2]
[313194181,1706914249943,-500.0,0.00022795,2]
[313194182,1706914249952,-500.0,0.00022795,2]
[313194183,1706914249961,-500.0,0.00022795,2]
[313194184,1706914249970,-500.0,0.00022795,2]
[313194185,1706914249979,-500.0,0.00022795,2]
[313194186,1706914249989,-500.0,0.00022795,2]
[313194187,1706914249998,-500.0,0.00022795,2]
[313194188,1706914250007,-500.0,0.00022795,2]
[313194189,1706914250016,-500.0,0.00022795,2]
[313194190,1706914250026,-500.0,0.00022795,2]
[313194191,1706914250035,-500.0,0.00022795,2]
[313194192,1706914250044,-500.0,0.00022795,2]
[313194193,1706914250054,-500.0,0.00022795,2]
[313194194,1706914250063,-500.0,0.00022795,2]
[313194195,1706914250072,-500.0,0.00022795,2]
[313194196,1706914250081,-500.0,0.00022795,2]
[313194197,1706914250090,-500.0,0.00022795,2]
[313194198,1706914250099,-500.0,0.00022795,2]
[313194199,1706914250108,-500.0,0.00022795,2]
[313194200,1706914250118,-500.0,0.00022795,2]
[313194201,1706914250128,-500.0,0.00022795,2]
[313194202,1706914250137,-500.0,0.00022795,2]
[313194203,1706914250146,-500.0,0.00022795,2]
[313194204,1706914250155,-500.0,0.00022795,2]
[313194205,1706914250164,-500.0,0.00022795,2]
[313194206,1706914250173,-500.0,0.00022795,2]
[313194207,1706914250183,-500.0,0.00022795,2]
[313194208,1706914250192,-500.0,0.00022795,2]
[313194209,1706914250202,-500.0,0.00022795,2]
[313194210,1706914250211,-500.0,0.00022795,2]
[313194211,1706914250220,-500.0,0.00022795,2]
[313194212,1706914250305,-500.0,0.00022795,2]
[313194213,1706914250313,-500.0,0.00022795,2]
[313194214,1706914250323,-500.0,0.00022795,2]
[313194215,1706914250332,-500.0,0.00022795,2]
[313194216,1706914250342,-500.0,0.00022795,2]
[313194217,1706914250351,-500.0,0.00022795,2]
[313194218,1706914250360,-500.0,0.00022795,2]
[313194219,1706914250369,-500.0,0.00022795,2]
[313194220,1706914250378,-500.0,0.00022795,2]
[313194221,1706914250387,-550.0,0.00022795,2]
[313194222,1706914250396,-500.0,0.00022795,2]
[313194223,1706914250405,-500.0,0.00022795,2]
[313194224,1706914250415,-500.0,0.00022795,2]
[313194225,1706914250424,-155.0,0.00022796,2]
[313194226,1706914250433,-374.96758824,0.00022796,2]
[313194227,1706914250442,-2073.2635017,0.00022796,2]
[313194228,1706914250451,-1053.13917845,0.00022796,2]
[313194229,1706914250460,-172.36279521,0.00022796,2]
[313194230,1706914250469,-1044.60971119,0.00022796,2]
[313194231,1706914250479,-630.55738904,0.00022796,2]
[313194232,1706914250488,-189.01095401,0.00022796,2]
[313194233,1706914250497,-500.0,0.00022796,2]
[313194234,1706914250506,-775.90960026,0.00022796,2]
[313194235,1706914250515,-351.7331543,0.00022797,2]
[313194236,1706914250524,-500.0,0.00022797,2]
[313194237,1706914250533,-1095.68935283,0.00022797,2]
[313194238,1706914250542,-24069.96635502,0.00022798,2]
[313194239,1706914250551,-2000.0,0.0002282,2]
[313194240,1706914250561,-200.0,0.0002282,2]
[313194241,1706914250570,-2000.0,0.0002282,2]
[313194242,1706914250579,-200.0,0.0002282,2]
[313194243,1706914250589,-2000.0,0.0002282,2]
[313194244,1706914250598,-200.0,0.0002282,2]
[313194245,1706914250609,-200.0,0.0002282,2]
[313194246,1706914250619,-300.0,0.00022826,2]
[313194247,1706914250628,-457.24173514,0.00022833,2]
[313194248,1706914250637,-150.0,0.0002284,2]
[313194249,1706914250646,-150.0,0.00022843,2]
[313194250,1706914250655,-973.41511672,0.00022844,2]
[313194251,1706914250664,-500.0,0.00022863,2]
[313194252,1706914250674,-500.0,0.00022863,2]
[313194253,1706914250683,-500.0,0.00022863,2]
[313194254,1706914250693,-500.0,0.00022863,2]
[313194255,1706914250702,-150.58280246,0.00022863,2]
[313194256,1706914250711,-190.94466793,0.00022863,2]
[313194257,1706914250720,-500.0,0.00022863,2]
[313194258,1706914250729,-339.23829767,0.00022863,2]
[313194259,1706914250738,-500.0,0.00022863,2]
[313194260,1706914250747,-500.0,0.00022863,2]
[313194261,1706914250756,-500.0,0.00022863,2]
[313194262,1706914250765,-500.0,0.00022863,2]
[313194263,1706914250774,-500.0,0.00022863,2]
[313194264,1706914250783,-500.0,0.00022863,2]
[313194265,1706914250792,-500.0,0.00022863,2]
[313194266,1706914250801,-718.55,0.00022863,2]
[313194267,1706914250811,-500.0,0.00022863,2]
[313194268,1706914250820,-500.0,0.00022863,2]
[313194269,1706914250829,-500.0,0.00022863,2]
[313194270,1706914250838,-500.0,0.00022863,2]
[313194271,1706914250847,-500.0,0.00022863,2]
[313194272,1706914250858,-500.0,0.00022863,2]
[313194273,1706914250876,-500.0,0.00022863,2]
[313194274,1706914250893,-500.0,0.00022863,2]
[313194275,1706914250910,-1631.7,0.00022863,5]
[313194276,1706914250928,-2967.97,0.00022863,2]
[313194277,1706914250941,-415.51865592,0.00022863,2]
[313194278,1706914250958,-500.0,0.00022863,2]
[313194279,1706914250975,-1079.83,0.00022863,2]
[313194280,1706914250989,-611.01675286,0.00022863,2]
[313194281,1706914251007,-500.0,0.00022863,2]
[313194282,1706914251024,-500.0,0.00022863,2]
[313194283,1706914251039,-619.42754749,0.00022863,2]
[313194284,1706914251055,-500.0,0.00022863,2]
[313194285,1706914251074,-543.48,0.00022863,2]
[313194286,1706914251089,-499.897564,0.00022863,2]
[313194287,1706914251101,-500.0,0.00022863,2]
[313194288,1706914251116,-375.33112606,0.00022863,2]
[313194289,1706914251132,-500.0,0.00022863,2]
[313194290,1706914251147,-500.0,0.00022863,2]
[313194291,1706914251160,-500.0,0.00022863,2]
[313194292,1706914251174,-254.46374825,0.00022865,2]
[313194293,1706914251188,-500.0,0.00022865,2]
[313194294,1706914251201,-422.25437966,0.00022865,2]
[313194295,1706914251216,-500.0,0.00022865,2]
[313194296,1706914251229,-500.0,0.00022865,2]
[313194297,1706914251243,-500.0,0.00022865,2]
[313194298,1706914251259,-500.0,0.00022865,7]
[313194299,1706914251272,-500.0,0.00022865,2]
[313194300,1706914251287,-500.0,0.00022865,2]
[313194301,1706914251301,-500.0,0.00022865,2]
[313194302,1706914251315,-500.0,0.00022865,2]
[313194303,1706914251330,-500.0,0.00022865,2]
[313194304,1706914251346,-565.44621344,0.00022865,2]
[313194305,1706914251359,-558.14275232,0.00022865,2]
[313194306,1706914251373,-500.0,0.00022865,2]
[313194307,1706914251387,-500.0,0.00022865,2]
[313194308,1706914251402,-395.05049923,0.00022865,2]
[313194309,1706914251415,-493.4,0.00022865,2]
[313194310,1706914251428,-500.0,0.00022865,2]
[313194311,1706914251441,-500.0,0.00022865,2]
[313194312,1706914251455,-410.49,0.00022865,2]
[313194313,1706914251469,-500.0,0.00022865,2]
[313194314,1706914251483,-500.0,0.00022865,2]
[313194315,1706914251496,-386.60821889,0.00022865,2]
[313194316,1706914251510,-150.0,0.00022865,2]
[313194317,1706914251524,-500.0,0.00022865,2]
[313194318,1706914251538,-241.29651037,0.00022865,2]
[313194319,1706914251552,-296.43977098,0.00022865,2]
[313194320,1706914251568,-222.22,0.00022865,2]
[313194321,1706914251581,-604.6581548,0.00022865,2]
[313194322,1706914251595,-500.0,0.00022865,2]
[313194323,1706914251608,-500.0,0.00022865,2]
[313194324,1706914251623,-500.0,0.00022865,2]
[313194325,1706914251636,-500.0,0.00022865,2]
[313194326,1706914251652,-500.0,0.00022865,2]
[313194327,1706914251668,-500.0,0.00022865,2]
[313194328,1706914251683,-505.08754573,0.00022865,2]
[313194329,1706914251696,-187.27,0.00022865,2]
[313194330,1706914251705,-500.0,0.00022865,2]
[313194331,1706914251714,-500.0,0.00022865,2]
[313194332,1706914251723,-500.0,0.00022865,2]
[313194333,1706914251732,-619.15054231,0.00022865,2]
[313194334,1706914251888,-500.0,0.00022865,2]
[313194335,1706914251898,-258.78394827,0.00022865,2]
[313194336,1706914251907,-500.0,0.00022865,2]
[313194337,1706914251916,-510.68970651,0.00022865,2]
[313194338,1706914251925,-546.64877446,0.00022865,2]
[313194339,1706914251935,-500.0,0.00022865,2]
[313194340,1706914251944,-524.39655497,0.00022865,2]
[313194341,1706914251954,-500.0,0.00022865,2]
[313194342,1706914251964,-872.99,0.00022865,2]
[313194343,1706914251973,-530.05268342,0.00022865,2]
[313194344,1706914251982,-423.51025375,0.00022865,2]
[313194345,1706914251991,-500.0,0.00022865,2]
[313194346,1706914252000,-278.00985008,0.00022865,2]
[313194347,1706914252010,-192.61477256,0.00022865,2]
[313194348,1706914252019,-521.9704285,0.00022865,2]
[313194349,1706914252028,-500.0,0.00022865,2]
[313194350,1706914252037,-592.11394579,0.00022865,2]
[313194351,1706914252046,-500.0,0.00022865,2]
[313194352,1706914252055,-500.0,0.00022865,2]
[313194353,1706914252065,-426.62929675,0.00022865,2]
[313194354,1706914252074,-568.97686044,0.00022865,2]
[313194355,1706914252082,-187.75,0.00022865,2]
[313194356,1706914252091,-530.1336228,0.00022865,2]
[313194357,1706914252100,-500.0,0.00022865,2]
[313194358,1706914252109,-515.93347706,0.00022865,2]
[313194359,1706914252118,-500.0,0.00022865,2]
[313194360,1706914252127,-532.01092946,0.00022865,2]
[313194361,1706914252137,-518.42877647,0.00022865,2]
[313194362,1706914252146,-500.0,0.00022865,2]
[313194363,1706914252155,-525.28933023,0.00022865,2]
[313194364,1706914252164,-519.42,0.00022865,2]
[313194365,1706914252173,-500.0,0.00022865,2]
[313194366,1706914252182,-493.25482952,0.00022865,2]
[313194367,1706914252191,-531.96134207,0.00022865,2]
[313194368,1706914252200,-560.948537,0.00022865,2]
[313194369,1706914252209,-500.0,0.00022865,2]
[313194370,1706914252218,-500.0,0.00022865,2]
[313194371,1706914252227,-614.46442042,0.00022865,2]
[313194372,1706914252236,-525.53079097,0.00022865,2]
[313194373,1706914252246,-521.68386591,0.00022865,2]
[313194374,1706914252258,-500.0,0.00022865,2]
[313194375,1706914252267,-500.0,0.00022865,2]
[313194376,1706914252276,-528.62890507,0.00022865,2]
[313194377,1706914252285,-500.0,0.00022865,2]
[313194378,1706914252294,-631.06517641,0.00022865,2]
[313194379,1706914252303,-500.0,0.00022865,2]
[313194380,1706914252312,-500.0,0.00022865,2]
[313194381,1706914252321,-500.0,0.00022865,2]
[313194382,1706914252331,-151.42236031,0.00022865,2]
[313194383,1706914252342,-500.0,0.00022865,2]
[313194384,1706914252351,-500.0,0.00022865,2]
[313194385,1706914252360,-549.94920473,0.00022865,2]
[313194386,1706914252369,-500.0,0.00022865,2]
[313194387,1706914252378,-500.0,0.00022865,2]
[313194388,1706914252387,-500.0,0.00022865,2]
[313194389,1706914252396,-503.34541048,0.00022865,2]
[313194390,1706914252406,-1275.56,0.00022865,2]
[313194391,1706914252415,-563.47396082,0.00022865,2]
[313194392,1706914252424,-500.0,0.00022865,2]
[313194393,1706914252433,-500.0,0.00022865,2]
[313194394,1706914252443,-500.0,0.00022865,2]
[313194395,1706914252452,-500.0,0.00022865,2]
[313194396,1706914252462,-500.0,0.00022865,2]
[313194397,1706914252470,-539.21372213,0.00022865,2]
[313194398,1706914252479,-1153.43,0.00022865,2]
[313194399,1706914252488,-1658.95,0.00022865,5]
[313194400,1706914252497,-500.0,0.00022865,2]
[313194401,1706914252506,-500.0,0.00022865,2]
[313194402,1706914252515,-500.0,0.00022865,2]
[313194403,1706914252525,-500.0,0.00022865,2]
[313194404,1706914252535,-500.0,0.00022865,2]
[313194405,1706914252544,-500.0,0.00022865,2]
[313194406,1706914252553,-801.74,0.00022865,2]
[313194407,1706914252562,-500.0,0.00022865,2]
[313194408,1706914252571,-500.0,0.00022865,2]
[313194409,1706914252581,-500.0,0.00022865,2]
[313194410,1706914252590,-500.0,0.00022865,2]
[313194411,1706914252599,-500.0,0.00022865,2]
[313194412,1706914252609,-500.0,0.00022865,2]
[313194413,1706914252619,-530.72690718,0.00022865,2]
[313194414,1706914252628,-500.0,0.00022865,2]
[313194415,1706914252638,-588.65348,0.00022865,2]
[313194416,1706914252648,-1126.07,0.00022865,2]
[313194417,1706914252658,-500.0,0.00022865,2]
[313194418,1706914252668,-500.0,0.00022865,2]
[313194419,1706914252679,-500.0,0.00022865,2]
[313194420,1706914252688,-500.0,0.00022865,2]
[313194421,1706914252698,-565.52112112,0.00022865,2]
[313194422,1706914252708,-534.79177817,0.00022865,2]
[313194423,1706914252717,-208.41935013,0.00022865,2]
[313194424,1706914252727,-500.0,0.00022865,2]
[313194425,1706914252737,-500.0,0.00022865,2]
[313194426,1706914252747,-500.0,0.00022865,2]
[313194427,1706914252758,-500.0,0.00022865,2]
[313194428,1706914252768,-500.0,0.00022865,2]
[313194429,1706914252777,-500.0,0.00022865,2]
[313194430,1706914252787,-500.0,0.00022865,2]
[313194431,1706914252796,-500.0,0.00022865,2]
[313194432,1706914252805,-500.0,0.00022865,2]
[313194433,1706914252814,-500.0,0.00022865,2]
[313194434,1706914252824,-687.23,0.00022865,2]
[313194435,1706914252833,-500.0,0.00022865,2]
[313194436,1706914252843,-500.0,0.00022865,2]
[313194437,1706914252852,-500.0,0.00022865,2]
[313194438,1706914252862,-1009.25903535,0.00022865,7]
[313194439,1706914252871,-872.2,0.00022865,2]
[313194440,1706914252880,-500.0,0.00022865,2]
[313194441,1706914252890,-500.0,0.00022865,2]
[313194442,1706914252900,-500.0,0.00022865,2]
[313194443,1706914252909,-500.0,0.00022865,2]
[313194444,1706914252918,-500.0,0.00022865,2]
[313194445,1706914252927,-500.0,0.00022865,2]
[313194446,1706914252937,-500.0,0.00022865,2]
[313194447,1706914252947,-189.64553644,0.00022865,2]
[313194448,1706914252957,-1213.24,0.00022865,2]
[313194449,1706914252966,-265.37107649,0.00022865,2]
[313194450,1706914252975,-362.98456966,0.00022865,2]
[313194451,1706914252984,-500.0,0.00022865,2]
[313194452,1706914252994,-558.59461645,0.00022865,2]
[313194453,1706914253003,-500.0,0.00022865,2]
[313194454,1706914253012,-500.0,0.00022865,2]
[313194455,1706914253022,-508.27907222,0.00022865,2]
[313194456,1706914253031,-648.35598878,0.00022865,2]
[313194457,1706914253040,-500.0,0.00022865,2]
[313194458,1706914253049,-500.0,0.00022865,2]
[313194459,1706914253059,-500.0,0.00022865,2]
[313194460,1706914253069,-588.48341566,0.00022865,2]
[313194461,1706914253078,-157.37558748,0.00022865,2]
[313194462,1706914253088,-500.0,0.00022865,2]
[313194463,1706914253100,-1323.78,0.00022865,2]
[313194464,1706914253110,-500.0,0.00022865,2]
[313194465,1706914253120,-311.35370982,0.00022865,2]
[313194466,1706914253130,-500.0,0.00022865,2]
[313194467,1706914253141,-500.0,0.00022865,2]
[313194468,1706914253150,-500.0,0.00022865,2]
[313194469,1706914253160,-500.0,0.00022865,2]
[313194470,1706914253170,-500.0,0.00022865,2]
[313194471,1706914253179,-500.0,0.00022865,2]
[313194472,1706914253189,-633.60180753,0.00022865,2]
[313194473,1706914253198,-500.0,0.00022865,2]
[313194474,1706914253207,-500.0,0.00022865,2]
[313194475,1706914253217,-506.02529316,0.00022865,2]
[313194476,1706914253227,-500.0,0.00022865,2]
[313194477,1706914253236,-500.0,0.00022865,2]
[313194478,1706914253245,-511.67559742,0.00022865,2]
[313194479,1706914253256,-500.0,0.00022865,2]
[313194480,1706914253267,-500.0,0.00022865,2]
[313194481,1706914253276,-500.0,0.00022865,2]
[313194482,1706914253286,-516.23897742,0.00022865,2]
[313194483,1706914253296,-500.0,0.00022865,2]
[313194484,1706914253305,-500.0,0.00022865,2]
[313194485,1706914253316,-500.0,0.00022865,2]
[313194486,1706914253326,-169.11117164,0.00022865,2]
[313194487,1706914253337,-510.90621822,0.00022865,2]
[313194488,1706914253348,-500.0,0.00022865,2]
[313194489,1706914253357,-574.85863092,0.00022865,2]
[313194490,1706914253367,-500.0,0.00022865,2]
[313194491,1706914253378,-500.0,0.00022865,2]
[313194492,1706914253387,-500.0,0.00022866,2]
[313194493,1706914253397,-500.0,0.00022866,2]
[313194494,1706914253406,-599.65582884,0.00022866,2]
[313194495,1706914253416,-500.0,0.00022866,2]
[313194496,1706914253425,-500.0,0.00022866,2]
[313194497,1706914253435,-539.04069424,0.00022866,2]
[313194498,1706914253444,-225.22603931,0.00022867,2]
[313194499,1706914253453,-500.0,0.00022867,2]
[313194500,1706914253463,-531.23797307,0.00022867,2]
[313194501,1706914253472,-500.0,0.00022867,2]
[313194502,1706914253481,-470.13252679,0.00022867,2]
[313194503,1706914253490,-518.03501661,0.00022867,2]
[313194504,1706914253499,-155.25395155,0.00022867,2]
[313194505,1706914253509,-319.73520663,0.00022867,2]
[313194506,1706914253518,-519.47372772,0.00022867,2]
[313194507,1706914253527,-585.98387503,0.00022867,2]
[313194508,1706914253536,-500.0,0.00022867,2]
[313194509,1706914253545,-624.3,0.00022867,2]
[313194510,1706914253555,-500.0,0.00022867,2]
[313194511,1706914253565,-500.0,0.00022867,2]
[313194512,1706914253574,-500.0,0.00022867,2]
[313194513,1706914253584,-2397.16,0.00022867,2]
[313194514,1706914253595,-500.0,0.00022867,2]